bitfinex/quotes_SOLUSD_20250630
["timestamp","ask_amount","ask_price","bid_price","bid_amount"]
[1751282329663,4.63668564,150.69,150.67,18.64964886]
[1751282331068,1.3877786,150.7,150.67,25.28654458]
[1751282331244,6.02446424,150.7,150.67,25.28654458]
[1751282332459,1.3877786,150.7,150.67,25.28654458]
[1751282332764,6.02446424,150.7,150.67,25.28654458]
[1751282332964,1.3877786,150.7,150.67,18.64964886]
[1751282333147,1.3877786,150.7,150.67,25.28655637]
[1751282333348,6.02446424,150.7,150.67,25.28655637]
[1751282335867,4.63668564,150.69,150.67,25.28655637]
[1751282337443,4.63668564,150.69,150.67,18.64964886]
[1751282339061,1.3877786,150.7,150.67,18.64964886]
[1751282339245,6.02446424,150.7,150.67,25.28664848]
[1751282339967,4.63668564,150.69,150.67,18.64964886]
[1751282340465,4.63668564,150.69,150.67,25.28666264]
[1751282340666,4.63668564,150.69,150.67,18.64964886]
[1751282340868,6.02446424,150.7,150.67,25.28652894]
[1751282341070,4.63668564,150.69,150.67,18.64964886]
[1751282341361,1.3877786,150.7,150.67,18.64964886]
[1751282341565,1.3877786,150.7,150.67,25.28664849]
[1751282341770,4.63668564,150.69,150.67,25.28664849]
[1751282342271,4.63668564,150.69,150.67,18.64964886]
[1751282342769,1.3877786,150.7,150.67,25.28657067]
[1751282343139,6.02446424,150.7,150.67,25.28657067]
[1751282345652,1.3877786,150.7,150.67,25.28657067]
[1751282345848,6.02446424,150.7,150.67,25.28657067]
[1751282347473,4.13668564,150.69,150.67,18.64964886]
[1751282348577,4.63668564,150.69,150.67,18.64964886]
[1751282349175,4.63668564,150.69,150.67,25.28661388]
[1751282350073,4.63668564,150.68,150.64,25.28781283]
[1751282350249,4.63668564,150.67,150.64,25.28781283]
[1751282351078,4.63668564,150.67,150.64,18.64964886]
[1751282351372,4.63668564,150.66,150.64,25.28798754]
[1751282351573,0.28432314,150.68,150.64,25.28798754]
[1751282351749,4.63668564,150.67,150.64,25.28798754]
[1751282353859,4.63668564,150.67,150.64,18.64964886]
[1751282354059,4.63668564,150.66,150.64,18.64964886]
[1751282354467,6.92119531,150.68,150.64,18.64964886]
[1751282354661,4.63668564,150.66,150.64,18.64964886]
[1751282357676,4.63668564,150.66,150.64,25.28797661]
[1751282358379,6.92119531,150.68,150.64,25.28797661]
[1751282358578,0.28432314,150.68,150.64,25.28797661]
[1751282358761,4.63668564,150.67,150.64,25.28797661]
[1751282359571,0.28432314,150.68,150.64,25.28797661]
[1751282359768,0.28432314,150.68,150.64,29.92466225]
[1751282359971,4.92100878,150.68,150.64,29.92466225]
[1751282360371,4.63668564,150.67,150.64,25.28797661]
[1751282361691,4.63668564,150.66,150.64,18.64964886]
[1751282363404,4.63668564,150.66,150.63,6.16]
[1751282364283,4.63668564,150.66,150.63,12.79871145]
[1751282364784,0.28432314,150.66,150.63,12.79871145]
[1751282365900,4.92100878,150.66,150.63,12.79871145]
[1751282369893,3.23683088,150.66,150.63,12.79871145]
[1751282371098,0.28432314,150.66,150.64,18.64964886]
[1751282371285,3.23683088,150.66,150.64,18.64964886]
[1751282375305,2.95250774,150.65,150.64,18.64964886]
[1751282376100,3.23683088,150.66,150.64,18.64964886]
[1751282381607,26.0,150.67,150.65,18.64964886]
[1751282381796,26.0,150.67,150.65,25.28741024]
[1751282383110,28.95250774,150.67,150.65,25.28741024]
[1751282386113,28.95250774,150.67,150.65,18.64964886]
[1751282389202,2.95250774,150.68,150.65,25.28737331]
[1751282389803,2.95250774,150.66,150.64,6.04]
[1751282392299,9.58999127,150.66,150.64,6.04]
[1751282392499,2.95250774,150.65,150.64,6.04]
[1751282394516,3.23683088,150.66,150.64,6.04]
[1751282394822,3.23683088,150.66,150.64,12.67833098]
[1751282395012,3.23683088,150.66,150.64,6.04]
[1751282396316,0.28432314,150.66,150.64,6.04]
[1751282396513,3.23683088,150.66,150.64,12.67830961]
[1751282396820,26.0,150.69,150.65,18.64964886]
[1751282397024,1.3877786,150.7,150.67,18.64964886]
[1751282397220,1.3877786,150.7,150.69,21.6021566]
[1751282397820,1.3877786,150.7,150.69,28.73829702]
[1751282399225,1.3877786,150.7,150.69,30.37789702]
[1751282399605,1.3877786,150.7,150.69,62.84219702]
[1751282399929,1.3877786,150.7,150.69,64.49533034]
[1751282400127,1.3877786,150.7,150.69,94.49533034]
[1751282400723,1.3877786,150.7,150.69,63.88968928]
[1751282400920,1.3877786,150.7,150.69,101.73533034]
[1751282401116,1.3877786,150.7,150.69,96.62968928]
[1751282401429,1.3877786,150.7,150.69,101.23533034]
[1751282401939,1.3877786,150.7,150.69,64.77103034]
[1751282402730,1.3877786,150.7,150.69,63.13143034]
[1751282402942,1.3877786,150.7,150.69,35.83143034]
[1751282403304,1.3877786,150.7,150.69,31.22578928]
[1751282406732,1.3877786,150.7,150.69,25.28578928]
[1751282406924,1.3877786,150.7,150.69,31.22578928]
[1751282409135,1.3877786,150.7,150.69,35.83143034]
[1751282414028,1.3877786,150.7,150.69,31.22578928]
[1751282417744,5.99341966,150.7,150.69,24.58964886]
[1751282418522,1.3877786,150.7,150.69,24.58964886]
[1751282423561,1.3877786,150.7,150.69,31.22578928]
[1751282423765,1.3877786,150.7,150.69,24.58964886]
[1751282423944,1.67210174,150.7,150.64,87.6]
[1751282424149,4.60564106,150.68,150.66,18.64964886]
[1751282424342,1.67210174,150.7,150.66,18.64964886]
[1751282424343,4.60564106,150.69,150.67,6.6370213]
[1751282424749,1.67210174,150.7,150.67,6.6370213]
[1751282424957,4.60564106,150.69,150.67,6.6370213]
[1751282431546,1.67210174,150.7,150.67,6.6370213]
[1751282431766,4.60564106,150.69,150.67,6.6370213]
[1751282435892,2.95149174,150.69,150.67,6.6370213]
[1751282436686,2.95149174,150.68,150.66,25.28689636]
[1751282437366,1.3877786,150.7,150.66,41.88055094]
[1751282437577,1.3877786,150.7,150.68,2.95149174]
[1751282438094,4.33927034,150.7,150.67,18.64964886]
[1751282438383,1.3877786,150.7,150.68,6.63658083]
[1751282438573,1.3877786,150.7,150.68,9.58807257]
[1751282438765,1.3877786,150.7,150.68,6.63658083]
[1751282442082,1.3877786,150.7,150.69,7.13614042]
[1751282446694,5.99767558,150.7,150.69,0.5]
[1751282446876,5.99767558,150.7,150.69,19.14964886]
[1751282448291,5.99767558,150.7,150.69,25.78578928]
[1751282449572,1.3877786,150.7,150.69,25.78578928]
[1751282449773,5.99767558,150.7,150.69,25.78578928]
[1751282450180,1.3877786,150.7,150.69,25.78578928]
[1751282450387,5.99767558,150.7,150.69,25.78578928]
[1751282450587,1.3877786,150.7,150.69,25.78578928]
[1751282450778,5.99767558,150.7,150.69,25.78578928]
[1751282450974,1.3877786,150.7,150.69,25.78578928]
[1751282451188,5.99767558,150.7,150.69,25.78578928]
[1751282455295,5.99767558,150.7,150.69,0.5]
[1751282455594,1.3877786,150.7,150.69,0.5]
[1751282456000,5.99767558,150.7,150.69,0.5]
[1751282459811,4.33922618,150.7,150.69,0.5]
[1751282460598,4.62354932,150.7,150.69,0.5]
[1751282460801,0.28432314,150.69,150.66,18.84964886]
[1751282461093,2.95144758,150.67,150.66,18.84964886]
[1751282461295,4.33922618,150.7,150.66,28.43855827]
[1751282461495,2.95144758,150.69,150.66,25.48711069]
[1751282461698,1.3877786,150.7,150.66,50.63111641]
[1751282461885,1.3877786,150.7,150.67,21.60109644]
[1751282462714,1.3877786,150.7,150.68,2.95144758]
[1751282463013,1.3877786,150.7,150.69,47.60109644]
[1751282463210,1.4877786,150.7,150.69,47.60109644]
[1751282463810,1.4877786,150.7,150.69,81.43723686]
[1751282465826,1.4877786,150.7,150.69,83.0932341]
[1751282466630,1.4877786,150.7,150.69,170.6932341]
[1751282467120,1.4877786,150.7,150.69,166.08578928]
[1751282467325,1.4877786,150.7,150.69,170.6932341]
[1751282467921,1.4877786,150.7,150.69,166.08578928]
[1751282468123,1.4877786,150.7,150.69,170.6932341]
[1751282469523,1.4877786,150.7,150.69,140.08578928]
[1751282469728,1.4877786,150.7,150.69,118.74578928]
[1751282472443,1.4877786,150.7,150.69,123.3532341]
[1751282476945,1.4877786,150.7,150.69,118.74578928]
[1751282478444,1.4877786,150.7,150.69,31.14578928]
[1751282496361,1.4877786,150.7,150.69,34.09606513]
[1751282498767,1.4877786,150.7,150.69,174.87606513]
[1751282499066,0.1,150.77,150.73,44.64964886]
[1751282499240,0.1,150.77,150.75,18.64964886]
[1751282499548,0.1,150.77,150.76,8.81027585]
[1751282500159,0.1,150.77,150.76,54.63992471]
[1751282500357,0.1,150.77,150.76,61.27298387]
[1751282500855,0.1,150.77,150.76,31.14270802]
[1751282501357,0.1,150.77,150.76,34.09298387]
[1751282501754,0.1,150.77,150.76,35.74681737]
[1751282505166,0.1,150.77,150.76,153.34681737]
[1751282508369,0.1,150.77,150.76,123.34681737]
[1751282510551,0.1,150.77,150.76,150.50681737]
[1751282511761,0.1,150.77,150.76,180.50681737]
[1751282513186,0.1,150.77,150.76,175.90270802]
[1751282513362,0.1,150.77,150.76,180.50681737]
[1751282513565,0.1,150.77,150.76,153.34681737]
[1751282513784,0.1,150.77,150.76,148.74270802]
[1751282514279,0.1,150.77,150.76,142.10964886]
[1751282514458,4.70410935,150.77,150.76,112.10964886]
[1751282514878,4.70410935,150.77,150.76,24.50964886]
[1751282516591,4.70410935,150.77,150.76,31.14270802]
[1751282520787,0.1,150.77,150.76,31.14270802]
[1751282535654,0.1,150.77,150.76,34.0906675]
[1751282535939,0.1,150.77,150.76,121.6906675]
[1751282536619,0.1,150.77,150.76,115.8306675]
[1751282537646,0.1,150.77,150.76,145.8306675]
[1751282537830,0.1,150.77,150.76,153.3462089]
[1751282542140,0.1,150.77,150.76,148.74270802]
[1751282543041,0.1,150.77,150.76,118.74270802]
[1751282546544,0.1,150.77,150.76,31.14270802]
[1751282549681,0.1,150.77,150.76,25.28270802]
[1751282550385,0.1,150.77,150.76,18.64964886]
[1751282550680,4.70350088,150.77,150.76,18.64964886]
[1751282553663,32.26980088,150.77,150.72,87.6]
[1751282553870,27.6663,150.77,150.73,18.64964886]
[1751282554180,4.60350088,150.74,150.73,18.64964886]
[1751282554769,4.60350088,150.74,150.7,6.6355659]
[1751282554995,4.60350088,150.72,150.71,48.64964886]
[1751282555666,32.63349917,150.75,150.72,18.64964886]
[1751282555877,4.60350088,150.73,150.72,18.64964886]
[1751282556269,4.60350088,150.73,150.71,18.64964886]
[1751282556470,4.60350088,150.72,150.71,18.64964886]
[1751282556988,32.63349917,150.75,150.71,18.64964886]
[1751282556989,4.60350088,150.73,150.71,18.64964886]
[1751282558094,4.60350088,150.73,150.71,25.2848974]
[1751282558886,4.60350088,150.72,150.71,25.2848974]
[1751282559087,4.60350088,150.72,150.7,18.64964886]
[1751282559284,4.60350088,150.71,150.7,18.64964886]
[1751282559492,0.28432314,150.74,150.7,18.64964886]
[1751282559698,4.60350088,150.71,150.7,18.64964886]
[1751282560075,32.63356251,150.75,150.7,18.64964886]
[1751282560401,4.60350088,150.72,150.7,25.2852973]
[1751282561298,0.28432314,150.74,150.7,25.2852973]
[1751282561599,4.60350088,150.72,150.7,25.2852973]
[1751282562612,1.6663,150.77,150.7,25.2852973]
[1751282562785,4.60350088,150.76,150.71,4.60350088]
[1751282563597,4.60350088,150.76,150.72,6.63481953]
[1751282567099,1.6663,150.77,150.73,18.64964886]
[1751282567309,4.60350088,150.76,150.73,18.64964886]
[1751282567488,4.60350088,150.76,150.74,6.63393923]
[1751282569011,4.60350088,150.76,150.75,18.64964886]
[1751282569187,4.60350088,150.76,150.75,25.28314803]
[1751282570509,0.1,150.77,150.75,25.28314803]
[1751282570713,4.60350088,150.76,150.75,25.28314803]
[1751282571513,0.1,150.77,150.75,18.64964886]
[1751282571705,4.60350088,150.76,150.75,18.64964886]
[1751282574016,0.1,150.77,150.75,25.28314803]
[1751282574314,4.60350088,150.76,150.75,25.28314803]
[1751282575710,0.1,150.77,150.75,18.64964886]
[1751282575892,4.60350088,150.76,150.75,18.64964886]
[1751282577912,4.70350088,150.77,150.75,25.28314803]
[1751282578520,4.60350088,150.76,150.75,18.64964886]
[1751282581124,0.1,150.77,150.76,18.64964886]
[1751282582124,0.1,150.77,150.76,23.25314974]
[1751282582612,0.1,150.77,150.76,29.8862089]
[1751282585220,0.1,150.77,150.76,117.4862089]
[1751282587823,0.1,150.77,150.76,147.4862089]
[1751282591819,0.1,150.77,150.76,142.88270802]
[1751282594539,0.1,150.77,150.76,112.88270802]
[1751282596829,0.1,150.77,150.76,25.28270802]
[1751282597553,0.1,150.77,150.76,29.8862089]
[1751282598951,0.1,150.77,150.76,55.8862089]
[1751282599140,0.1,150.77,150.76,85.8862089]
[1751282599442,30.60350088,150.86,150.83,18.64964886]
[1751282600230,1.5466,150.87,150.83,18.64964886]
[1751282600452,6.15010088,150.87,150.83,18.64964886]
[1751282600642,4.60350088,150.86,150.83,18.64964886]
[1751282600838,1.5466,150.87,150.83,18.64964886]
[1751282601042,4.60350088,150.86,150.83,18.64964886]
[1751282601260,4.60350088,150.86,150.83,25.27962963]
[1751282603057,1.5466,150.87,150.83,25.27962963]
[1751282603264,4.60350088,150.86,150.83,25.27962963]
[1751282603470,1.5466,150.87,150.83,29.88313051]
[1751282603764,4.60350088,150.88,150.83,29.88313051]
[1751282604135,6.3594,150.89,150.83,29.88313051]
[1751282604336,4.60350088,150.88,150.83,29.88313051]
[1751282605250,32.62698142,150.9,150.83,29.88313051]
[1751282605438,5.60984011,150.91,150.88,26.0]
[1751282605646,5.60984011,150.91,150.9,23.25314974]
[1751282605855,5.60984011,150.91,150.9,110.75314974]
[1751282606153,5.60984011,150.91,150.9,106.14964886]
[1751282606538,5.60984011,150.91,150.9,110.75314974]
[1751282606732,5.60984011,150.91,150.9,106.14964886]
[1751282607260,5.60984011,150.91,150.9,147.38005497]
[1751282607842,5.60984011,150.91,150.9,142.77655409]
[1751282608061,5.60984011,150.91,150.9,147.38005497]
[1751282609037,5.60984011,150.91,150.9,142.77655409]
[1751282609243,5.60984011,150.91,150.9,147.38005497]
[1751282611243,5.60984011,150.91,150.9,142.77655409]
[1751282611646,5.60984011,150.91,150.9,147.38005497]
[1751282611840,5.60984011,150.91,150.9,149.30487811]
[1751282612065,0.1,150.98,150.94,18.64964886]
[1751282612238,0.1,150.98,150.97,49.25314974]
[1751282613550,0.1,150.98,150.97,79.25314974]
[1751282613962,0.1,150.98,150.97,85.87698228]
[1751282616357,0.1,150.98,150.97,81.2734814]
[1751282616567,0.1,150.98,150.97,55.2734814]
[1751282617139,0.1,150.98,150.97,59.87698228]
[1751282617456,0.1,150.98,150.97,147.37698228]
[1751282617652,0.1,150.98,150.97,112.7734814]
[1751282621374,4.70350088,150.98,150.97,6.62383254]
[1751282621865,0.1,150.98,150.97,6.62383254]
[1751282623381,0.1,150.98,150.97,25.2734814]
[1751282631368,4.70350088,150.98,150.95,18.64964886]
[1751282631877,0.1,150.98,150.95,18.64964886]
[1751282632078,4.70350088,150.98,150.95,18.64964886]
[1751282632584,4.70350088,150.98,150.96,6.62427133]
[1751282633685,4.60350088,150.97,150.95,18.64964886]
[1751282634000,4.60350088,150.97,150.95,25.2743356]
[1751282634562,26.0,150.97,150.93,18.64964886]
[1751282634762,4.60350088,150.95,150.93,18.64964886]
[1751282634961,8.51171293,150.98,150.93,18.64964886]
[1751282635185,4.60350088,150.95,150.93,18.64964886]
[1751282635665,4.60350088,150.96,150.93,18.64964886]
[1751282635867,27.88822314,150.98,150.93,18.64964886]
[1751282636083,4.60350088,150.96,150.93,18.64964886]
[1751282636467,27.6039,150.98,150.93,23.25314974]
[1751282636794,4.60350088,150.97,150.95,18.64964886]
[1751282638100,4.60350088,150.97,150.96,0.5]
[1751282638301,4.88782402,150.97,150.93,94.12548849]
[1751282638475,4.60350088,150.95,150.93,94.12548849]
[1751282639296,4.60350088,150.94,150.91,25.27585616]
[1751282639481,4.60350088,150.93,150.91,6.6262073]
[1751282639868,4.60350088,150.93,150.9,25.27638117]
[1751282640501,4.60350088,150.92,150.9,25.27638117]
[1751282640683,4.60350088,150.93,150.9,25.27638117]
[1751282640880,4.60350088,150.92,150.9,25.27638117]
[1751282641080,6.6253877,150.94,150.9,18.64964886]
[1751282641285,4.60350088,150.91,150.9,18.64964886]
[1751282641795,4.60350088,150.91,150.9,6.62690523]
[1751282642100,4.60350088,150.91,150.88,6.62770537]
[1751282642268,4.60350088,150.9,150.88,6.62770537]
[1751282642469,4.60350088,150.89,150.88,18.64964886]
[1751282642693,4.60350088,150.89,150.87,6.62802486]
[1751282643193,4.60350088,150.89,150.87,25.27767372]
[1751282643573,4.60350088,150.88,150.86,6.62846105]
[1751282643774,4.60350088,150.87,150.86,25.27810991]
[1751282644184,4.60350088,150.87,150.86,18.64964886]
[1751282644604,4.60350088,150.88,150.86,18.64964886]
[1751282644911,34.1582669,150.92,150.87,18.64964886]
[1751282645205,4.60350088,150.89,150.87,18.64964886]
[1751282646106,0.38432314,150.91,150.87,18.64964886]
[1751282646305,4.60350088,150.88,150.87,18.64964886]
[1751282646688,4.60350088,150.88,150.85,6.62910175]
[1751282646891,4.60350088,150.87,150.85,6.62910175]
[1751282650600,4.60350088,150.86,150.84,25.47919009]
[1751282652886,4.60350088,150.85,150.84,18.84964886]
[1751282653200,4.60350088,150.85,150.84,0.2]
[1751282653402,4.60350088,150.86,150.84,18.84964886]
[1751282653606,4.60350088,150.86,150.84,25.47919009]
[1751282655199,4.60350088,150.87,150.84,25.47919009]
[1751282655601,4.60350088,150.86,150.84,25.47919009]
[1751282656087,38.82545901,150.89,150.84,25.47919009]
[1751282656286,26.0,150.89,150.84,30.08269097]
[1751282656515,4.60350088,150.88,150.84,25.47919009]
[1751282657094,4.60350088,150.86,150.84,25.47919009]
[1751282657395,4.60350088,150.85,150.84,18.84964886]
[1751282661544,4.60350088,150.85,150.84,0.2]
[1751282661707,30.88782402,150.85,150.84,0.2]
[1751282661914,37.51692577,150.85,150.84,0.2]
[1751282662113,11.51692577,150.85,150.84,0.2]
[1751282663224,4.88782402,150.85,150.84,0.2]
[1751282663417,11.51692577,150.85,150.84,0.2]
[1751282663934,4.88782402,150.85,150.84,0.2]
[1751282664128,11.51692577,150.85,150.84,0.2]
[1751282665305,4.60350088,150.85,150.84,0.2]
[1751282665508,27.6598,150.87,150.84,0.2]
[1751282665708,4.60350088,150.86,150.84,0.2]
[1751282666224,6.26330088,150.87,150.84,0.2]
[1751282666527,4.60350088,150.88,150.85,18.64964886]
[1751282666915,4.60350088,150.88,150.85,6.628997]
[1751282667124,4.60350088,150.87,150.85,25.27864586]
[1751282667617,4.60350088,150.86,150.85,18.64964886]
[1751282667817,4.60350088,150.86,150.84,0.2]
[1751282668027,4.60350088,150.86,150.84,18.84964886]
[1751282669307,4.60350088,150.86,150.84,6.8294513]
[1751282671829,6.62767385,150.89,150.84,6.8294513]
[1751282671830,0.28432314,150.88,150.84,6.8294513]
[1751282672019,4.60350088,150.86,150.84,6.8294513]
[1751282672830,4.60350088,150.86,150.85,0.5]
[1751282673225,0.28432314,150.88,150.85,7.12904903]
[1751282673433,4.60350088,150.86,150.85,0.5]
[1751282676122,4.60350088,150.86,150.84,0.2]
[1751282676308,0.28432314,150.88,150.84,6.82947773]
[1751282676506,4.60350088,150.86,150.84,94.32947773]
[1751282677717,0.28432314,150.88,150.85,25.27866306]
[1751282677718,4.60350088,150.88,150.85,25.27866306]
[1751282682440,4.60350088,150.88,150.85,112.77866306]
[1751282682834,4.60350088,150.88,150.86,0.5]
[1751282683453,4.60350088,150.87,150.86,0.5]
[1751282683741,4.60350088,150.87,150.85,87.5]
[1751282683953,4.88782402,150.86,150.85,87.5]
[1751282685236,0.28432314,150.86,150.85,87.5]
[1751282685439,4.88782402,150.86,150.85,87.5]
[1751282685842,11.51648635,150.86,150.85,87.5]
[1751282686145,4.88782402,150.86,150.85,87.5]
[1751282688344,4.88782402,150.86,150.84,0.2]
[1751282688519,4.60350088,150.85,150.84,0.2]
[1751282690542,0.28432314,150.86,150.84,0.2]
[1751282690843,4.60350088,150.85,150.84,0.2]
[1751282691646,16.56511184,150.92,150.84,6.82954123]
[1751282691827,30.60350088,150.88,150.84,98.93304211]
[1751282692028,30.60350088,150.88,150.84,99.43304211]
[1751282692743,4.60350088,150.89,150.85,23.25314974]
[1751282693760,4.60350088,150.89,150.86,6.62866233]
[1751282694252,26.0,150.9,150.86,6.62866233]
[1751282694431,4.60350088,150.89,150.86,6.62866233]
[1751282697255,4.60350088,150.89,150.86,94.12866233]
[1751282697662,26.0,150.9,150.86,94.12866233]
[1751282697847,4.60350088,150.89,150.86,94.12866233]
[1751282698539,30.60350088,150.9,150.86,98.73216321]
[1751282700359,30.60350088,150.9,150.86,94.12866233]
[1751282703249,4.60350088,150.88,150.86,94.12866233]
[1751282705365,4.60350088,150.88,150.86,87.5]
[1751282705659,4.88782402,150.87,150.86,87.5]
[1751282705857,4.88782402,150.87,150.84,0.7]
[1751282705858,4.88782402,150.87,150.84,0.2]
[1751282706071,4.88782402,150.85,150.84,30.2]
[1751282706244,30.88782402,150.85,150.84,30.2]
[1751282706642,30.88782402,150.85,150.84,0.2]
[1751282707565,37.51692577,150.85,150.84,0.2]
[1751282709871,26.28432314,150.84,150.83,0.2]
[1751282710083,30.88782402,150.84,150.77,18.64964886]
[1751282710250,4.60350088,150.78,150.77,18.64964886]
[1751282710450,4.60350088,150.78,150.75,6.63344356]
[1751282710654,0.28432314,150.79,150.76,30.0]
[1751282710965,4.60350088,150.77,150.75,18.64964886]
[1751282711271,30.88782402,150.8,150.74,6.63389946]
[1751282711272,4.60350088,150.76,150.74,25.28354832]
[1751282711448,4.60350088,150.75,150.74,25.28354832]
[1751282711649,4.60350088,150.75,150.74,55.28354832]
[1751282711850,4.60350088,150.75,150.74,18.64964886]
[1751282712461,4.60350088,150.75,150.73,87.5]
[1751282712683,4.60350088,150.75,150.73,6.63432136]
[1751282712977,6.63269633,150.77,150.72,112.7843251]
[1751282713174,4.60350088,150.73,150.7,94.13558965]
[1751282713382,4.60350088,150.72,150.71,48.64964886]
[1751282713781,4.60350088,150.73,150.71,48.64964886]
[1751282713977,4.60350088,150.73,150.71,55.28484757]
[1751282714662,4.60350088,150.73,150.71,25.28484757]
[1751282715864,4.60350088,150.73,150.71,18.64964886]
[1751282716069,4.60350088,150.72,150.7,94.13556078]
[1751282716880,4.60350088,150.73,150.7,94.13556078]
[1751282717881,4.60350088,150.73,150.7,25.28520964]
[1751282720673,4.60350088,150.72,150.7,25.28520964]
[1751282722384,4.60350088,150.72,150.7,112.78520964]
[1751282723472,4.60350088,150.71,150.69,94.33612559]
[1751282725172,4.60350088,150.72,150.69,94.33612559]
[1751282725809,0.28432314,150.76,150.69,94.33612559]
[1751282725987,4.60350088,150.72,150.69,94.33612559]
[1751282726595,4.60350088,150.71,150.69,0.2]
[1751282726981,4.60350088,150.71,150.69,6.83603835]
[1751282729112,4.60350088,150.71,150.69,0.2]
[1751282729312,4.60350088,150.71,150.69,6.83611937]
[1751282729811,4.60350088,150.71,150.69,94.33611937]
[1751282731208,4.60350088,150.72,150.69,94.33611937]
[1751282739899,6.63448485,150.73,150.69,94.33611937]
[1751282740101,4.60350088,150.71,150.69,94.33611937]
[1751282741625,4.60350088,150.71,150.7,30.0]
[1751282743212,4.60350088,150.71,150.69,87.7]
[1751282743612,4.60350088,150.72,150.69,94.33609062]
[1751282745024,4.60350088,150.72,150.69,87.7]
[1751282748444,0.14216157,150.76,150.7,18.64964886]
[1751282748614,0.14216157,150.76,150.72,23.25314974]
[1751282748615,26.0,150.75,150.72,23.25314974]
[1751282749114,30.60350088,150.75,150.71,18.64964886]
[1751282749322,4.60350088,150.74,150.71,18.64964886]
[1751282749522,4.60350088,150.74,150.71,25.28488053]
[1751282750524,4.60350088,150.73,150.71,18.64964886]
[1751282752133,4.60350088,150.72,150.7,30.0]
[1751282752333,4.60350088,150.71,150.69,0.2]
[1751282752516,4.60350088,150.7,150.69,0.2]
[1751282753206,4.60350088,150.71,150.69,0.2]
[1751282753413,4.60350088,150.7,150.69,0.2]
[1751282756632,6.634984,150.72,150.69,0.2]
[1751282756838,4.60350088,150.72,150.69,0.2]
[1751282758146,11.23848306,150.72,150.69,0.2]
[1751282759244,4.60350088,150.72,150.69,0.2]
[1751282760439,4.60350088,150.71,150.69,0.2]
[1751282760741,4.60350088,150.71,150.7,18.64964886]
[1751282763571,6.63437935,150.73,150.7,18.64964886]
[1751282763881,4.60350088,150.71,150.7,18.64964886]
[1751282767343,4.60350088,150.72,150.7,18.64964886]
[1751282768465,11.23854668,150.72,150.7,18.64964886]
[1751282768651,4.60350088,150.71,150.7,18.64964886]
[1751282769169,11.23854668,150.72,150.7,18.64964886]
[1751282771863,9.58574416,150.72,150.7,18.64964886]
[1751282775369,2.95069836,150.71,150.7,18.64964886]
[1751282777275,2.95069836,150.71,150.7,106.14964886]
[1751282778163,6.63452415,150.73,150.7,18.64964886]
[1751282778370,2.95069836,150.72,150.7,18.64964886]
[1751282780277,9.58559704,150.72,150.7,18.64964886]
[1751282781378,6.63437935,150.73,150.7,18.64964886]
[1751282781677,2.95069836,150.72,150.7,18.64964886]
[1751282782465,9.58558204,150.72,150.7,18.64964886]
[1751282783878,2.95069836,150.72,150.7,18.64964886]
[1751282785061,9.58552392,150.72,150.7,18.64964886]
[1751282785679,6.63437935,150.73,150.7,18.64964886]
[1751282785852,2.95069836,150.72,150.7,18.64964886]
[1751282787481,9.58555063,150.72,150.7,18.64964886]
[1751282789285,6.63437935,150.73,150.7,18.64964886]
[1751282789474,2.95069836,150.72,150.7,18.64964886]
[1751282791372,9.58552457,150.72,150.7,18.64964886]
[1751282793098,2.95069836,150.72,150.7,18.64964886]
[1751282793387,26.0,150.74,150.7,109.10034722]
[1751282793887,35.58468743,150.74,150.7,106.14964886]
[1751282794909,2.95069836,150.73,150.7,106.14964886]
[1751282798385,9.58518488,150.73,150.7,106.14964886]
[1751282799291,2.95069836,150.72,150.7,106.14964886]
[1751282800291,9.58518488,150.73,150.7,106.14964886]
[1751282800889,2.95069836,150.72,150.7,87.5]
[1751282801074,2.95069836,150.71,150.7,87.5]
[1751282801792,2.95069836,150.71,150.69,0.2]
[1751282801993,2.95069836,150.7,150.69,0.2]
[1751282802187,0.28432314,150.72,150.69,0.2]
[1751282802370,2.95069836,150.7,150.69,0.2]
[1751282807786,6.63568612,150.71,150.69,0.2]
[1751282807984,2.95069836,150.7,150.69,0.2]
[1751282809598,2.95069836,150.7,150.69,87.7]
[1751282810177,0.28432314,150.73,150.69,87.7]
[1751282810487,2.95069836,150.7,150.69,87.7]
[1751282812578,2.95069836,150.7,150.69,0.2]
[1751282812579,9.87072156,150.7,150.69,0.2]
[1751282814203,6.9200232,150.7,150.69,0.2]
[1751282814498,9.87072156,150.7,150.69,0.2]
[1751282818297,6.9200232,150.7,150.69,0.2]
[1751282818482,9.87072156,150.7,150.69,0.2]
[1751282820604,6.9200232,150.7,150.69,0.2]
[1751282820805,9.87072156,150.7,150.69,0.2]
[1751282838303,6.9200232,150.7,150.69,0.2]
[1751282838504,9.87072156,150.7,150.69,0.2]
[1751282840221,6.63520019,150.72,150.69,0.2]